fUSD/lending_fUSD_20241107
["ID","MTS","AMOUNT","RATE_DAILY","PERIOD"]
[341597815,1731016251183,-500.0,0.00027671,2]
[341597816,1731016251193,-539.58,0.00027671,2]
[341597817,1731016251203,-500.0,0.00027671,2]
[341597818,1731016251213,-500.0,0.00027671,2]
[341597819,1731016251222,-500.0,0.00027671,2]
[341597820,1731016251232,-500.0,0.00027671,2]
[341597821,1731016251243,-500.0,0.00027671,2]
[341597822,1731016251253,-500.0,0.00027671,2]
[341597823,1731016251263,-500.0,0.00027671,2]
[341597824,1731016251273,-500.0,0.00027671,2]
[341597825,1731016251282,-500.0,0.00027671,2]
[341597826,1731016251291,-500.0,0.00027671,2]
[341597827,1731016251300,-500.0,0.00027671,2]
[341597828,1731016251313,-800.13,0.00027671,2]
[341597829,1731016251323,-284.91,0.00027671,2]
[341597830,1731016251335,-500.0,0.00027671,2]
[341597831,1731016251344,-500.0,0.00027671,2]
[341597832,1731016251354,-1441.68,0.00027671,2]
[341597833,1731016251363,-521.14,0.00027671,2]
[341597834,1731016251372,-500.0,0.00027671,2]
[341597835,1731016251382,-500.0,0.00027671,2]
[341597836,1731016251391,-500.0,0.00027671,2]
[341597837,1731016251400,-723.37,0.00027671,2]
[341597838,1731016251409,-773.35,0.00027671,2]
[341597839,1731016251419,-500.0,0.00027671,2]
[341597840,1731016251428,-151.0,0.00027671,7]
[341597841,1731016251441,-180.19206,0.00027671,7]
[341597842,1731016251451,-500.0,0.00027671,2]
[341597843,1731016251460,-656.82,0.00027671,2]
[341597844,1731016251469,-500.0,0.00027671,2]
[341597845,1731016251480,-500.0,0.00027671,2]
[341597846,1731016251489,-518.14,0.00027671,2]
[341597847,1731016251499,-500.0,0.00027671,2]
[341597848,1731016251509,-500.0,0.00027671,2]
[341597849,1731016251519,-500.0,0.00027671,2]
[341597850,1731016251529,-555.241879,0.00027671,7]
[341597851,1731016251538,-555.241879,0.00027671,7]
[341597852,1731016251547,-500.0,0.00027671,2]
[341597853,1731016251557,-500.0,0.00027671,2]
[341597854,1731016251566,-500.0,0.00027671,2]
[341597855,1731016251576,-500.0,0.00027671,2]
[341597856,1731016251585,-865.18,0.00027671,2]
[341597857,1731016251595,-555.241879,0.00027671,7]
[341597858,1731016251604,-500.0,0.00027671,2]
[341597859,1731016251614,-555.241879,0.00027671,7]
[341597860,1731016251623,-500.0,0.00027671,2]
[341597861,1731016251633,-500.0,0.00027671,2]
[341597862,1731016251643,-774.27,0.00027671,2]
[341597863,1731016251652,-500.0,0.00027671,2]
[341597864,1731016251662,-500.0,0.00027671,2]
[341597865,1731016251671,-500.0,0.00027671,2]
[341597866,1731016251683,-670.81,0.00027671,2]
[341597867,1731016251692,-500.0,0.00027671,2]
[341597868,1731016251702,-500.0,0.00027671,2]
[341597869,1731016251713,-500.0,0.00027671,2]
[341597870,1731016251723,-500.0,0.00027671,2]
[341597871,1731016251733,-500.0,0.00027671,2]
[341597872,1731016251743,-610.51,0.00027671,2]
[341597873,1731016251754,-1137.17,0.00027671,2]
[341597874,1731016251763,-500.0,0.00027671,2]
[341597875,1731016251773,-500.0,0.00027671,2]
[341597876,1731016251782,-500.0,0.00027671,2]
[341597877,1731016251795,-500.0,0.00027671,2]
[341597878,1731016251804,-500.0,0.00027671,2]
[341597879,1731016251814,-600.83,0.00027671,2]
[341597880,1731016251824,-500.0,0.00027671,2]
[341597881,1731016251834,-500.0,0.00027671,2]
[341597882,1731016251843,-500.0,0.00027671,2]
[341597883,1731016251853,-500.0,0.00027671,2]
[341597884,1731016251862,-505.53,0.00027671,2]
[341597885,1731016251872,-500.0,0.00027671,2]
[341597886,1731016251882,-500.0,0.00027671,2]
[341597887,1731016251891,-500.0,0.00027671,2]
[341597888,1731016251901,-500.0,0.00027671,2]
[341597889,1731016251911,-500.0,0.00027671,2]
[341597890,1731016251920,-500.0,0.00027671,2]
[341597891,1731016251929,-500.0,0.00027671,2]
[341597892,1731016251938,-878.28,0.00027671,2]
[341597893,1731016251948,-500.0,0.00027671,2]
[341597894,1731016251958,-500.0,0.00027671,2]
[341597895,1731016251967,-500.0,0.00027671,2]
[341597896,1731016251977,-500.0,0.00027671,2]
[341597897,1731016251987,-500.0,0.00027671,2]
[341597898,1731016251996,-500.0,0.00027671,2]
[341597899,1731016252006,-500.0,0.00027671,2]
[341597900,1731016252015,-151.0,0.00027671,7]
[341597901,1731016252024,-151.0,0.00027671,7]
[341597902,1731016252034,-500.0,0.00027671,2]
[341597903,1731016252043,-500.0,0.00027671,2]
[341597904,1731016252053,-566.52,0.00027671,2]
[341597905,1731016252063,-500.0,0.00027671,2]
[341597906,1731016252148,-500.0,0.00027671,2]
[341597907,1731016252158,-500.0,0.00027671,2]
[341597908,1731016252167,-500.0,0.00027671,2]
[341597909,1731016252176,-1415.41,0.00027671,2]
[341597910,1731016252188,-500.0,0.00027671,2]
[341597911,1731016252197,-503.34002586,0.00027671,2]
[341597912,1731016252206,-500.0,0.00027671,2]
[341597913,1731016252215,-500.0,0.00027671,2]
[341597914,1731016252224,-500.0,0.00027671,2]
[341597915,1731016252233,-500.0,0.00027671,2]
[341597916,1731016252243,-500.0,0.00027671,2]
[341597917,1731016252252,-586.15,0.00027671,2]
[341597918,1731016252261,-500.0,0.00027671,2]
[341597919,1731016252270,-500.0,0.00027671,2]
[341597920,1731016252280,-500.0,0.00027671,2]
[341597921,1731016252289,-151.0,0.00027671,7]
[341597922,1731016252298,-151.0,0.00027671,7]
[341597923,1731016252307,-1032.34,0.00027671,2]
[341597924,1731016252319,-500.0,0.00027671,2]
[341597925,1731016252330,-500.0,0.00027671,2]
[341597926,1731016252339,-500.0,0.00027671,2]
[341597927,1731016252348,-546.06,0.00027671,2]
[341597928,1731016252358,-500.0,0.00027671,2]
[341597929,1731016252367,-613.87,0.00027671,2]
[341597930,1731016252376,-566.93,0.00027671,2]
[341597931,1731016252385,-711.59,0.00027671,2]
[341597932,1731016252394,-500.0,0.00027671,2]
[341597933,1731016252403,-500.0,0.00027671,2]
[341597934,1731016252413,-500.0,0.00027671,2]
[341597935,1731016252422,-500.0,0.00027671,2]
[341597936,1731016252431,-730.75,0.00027671,2]
[341597937,1731016252443,-500.0,0.00027671,2]
[341597938,1731016252453,-500.0,0.00027671,2]
[341597939,1731016252462,-500.0,0.00027671,2]
[341597940,1731016252472,-607.37,0.00027671,2]
[341597941,1731016252481,-500.0,0.00027671,2]
[341597942,1731016252490,-1189.88,0.00027671,2]
[341597943,1731016252499,-1265.99,0.00027671,2]
[341597944,1731016252509,-500.0,0.00027671,2]
[341597945,1731016252518,-500.0,0.00027671,2]
[341597946,1731016252527,-500.0,0.00027671,2]
[341597947,1731016252536,-500.0,0.00027671,2]
[341597948,1731016252545,-500.0,0.00027671,2]
[341597949,1731016252554,-500.0,0.00027671,2]
[341597950,1731016252563,-598.409802,0.00027671,7]
[341597951,1731016252573,-598.409802,0.00027671,7]
[341597952,1731016252584,-598.409802,0.00027671,7]
[341597953,1731016252593,-554.62,0.00027671,2]
[341597954,1731016252603,-683.94,0.00027671,2]
[341597955,1731016252612,-500.0,0.00027671,2]
[341597956,1731016252622,-500.0,0.00027671,2]
[341597957,1731016252631,-500.0,0.00027671,2]
[341597958,1731016252640,-598.409802,0.00027671,7]
[341597959,1731016252650,-598.409802,0.00027671,7]
[341597960,1731016252659,-598.409802,0.00027671,7]
[341597961,1731016252668,-500.0,0.00027671,2]
[341597962,1731016252677,-500.0,0.00027671,2]
[341597963,1731016252687,-500.0,0.00027671,2]
[341597964,1731016252696,-500.0,0.00027671,2]
[341597965,1731016252705,-1091.73,0.00027671,2]
[341597966,1731016252714,-896.02,0.00027671,2]
[341597967,1731016252723,-676.72,0.00027671,2]
[341597968,1731016252732,-500.0,0.00027671,2]
[341597969,1731016252741,-500.0,0.00027671,2]
[341597970,1731016252750,-1549.75,0.00027671,2]
[341597971,1731016252759,-500.0,0.00027671,2]
[341597972,1731016252768,-500.0,0.00027671,2]
[341597973,1731016252777,-806.13,0.00027671,2]
[341597974,1731016252786,-500.0,0.00027671,2]
[341597975,1731016252795,-500.0,0.00027671,2]
[341597976,1731016252805,-500.0,0.00027671,2]
[341597977,1731016252814,-500.0,0.00027671,2]
[341597978,1731016252824,-637.53866099,0.00027671,2]
[341597979,1731016252833,-500.0,0.00027671,2]
[341597980,1731016252842,-500.0,0.00027671,2]
[341597981,1731016252851,-500.0,0.00027671,2]
[341597982,1731016252861,-500.0,0.00027671,2]
[341597983,1731016252870,-1325.23,0.00027671,2]
[341597984,1731016252879,-1252.37,0.00027671,2]
[341597985,1731016252888,-500.0,0.00027671,2]
[341597986,1731016252899,-771.96,0.00027671,2]
[341597987,1731016252908,-603.19,0.00027671,2]
[341597988,1731016252918,-892.89,0.00027671,2]
[341597989,1731016252927,-500.0,0.00027671,2]
[341597990,1731016252936,-553.58468257,0.00027671,2]
[341597991,1731016252972,-26.22531743,0.00027671,2]
[341597992,1731016252981,-403.40843087,0.00027671,2]
[341597993,1731016252994,-96.59156913,0.00027671,2]
[341597994,1731016253003,-397.72687037,0.00027671,2]
[341597995,1731016253018,-288.87312963,0.00027671,2]
[341597996,1731016253028,-335.12382438,0.00027671,2]
[341597997,1731016253043,-164.87617562,0.00027671,2]
[341597998,1731016253052,-623.59,0.00027671,2]
[341597999,1731016253061,-621.64,0.00027671,2]
[341598000,1731016253071,-500.0,0.00027671,2]
[341598001,1731016253081,-700.2,0.00027671,2]
[341598002,1731016253090,-806.7,0.00027671,2]
[341598003,1731016253099,-500.0,0.00027671,2]
[341598004,1731016253109,-500.0,0.00027671,2]
[341598005,1731016253118,-500.0,0.00027671,2]
[341598006,1731016253127,-100.30768838,0.00027671,2]
[341598007,1731016253743,-500.0,0.00027397,2]
[341598008,1731016253752,-500.0,0.00027397,2]
[341598009,1731016253762,-500.0,0.00027397,2]
[341598010,1731016253771,-500.0,0.00027397,2]
[341598011,1731016253780,-553.98231162,0.00027671,2]
[341598012,1731016253790,-586.69,0.00027671,2]
[341598013,1731016253799,-500.0,0.00027671,2]
[341598014,1731016253810,-183.78279266,0.00027671,2]
[341598015,1731016253978,-500.0,0.00027397,2]
[341598016,1731016253987,-426.71720734,0.00027671,2]
[341598017,1731016253997,-105.26621703,0.00027671,2]
[341598018,1731016254010,-1162.34378297,0.00027671,2]
[341598019,1731016254019,-137.48733421,0.00027671,2]
[341598020,1731016254031,-381.55522718,0.00027671,2]
[341598021,1731016254040,-500.0,0.00027671,2]
[341598022,1731016254049,-500.0,0.00027671,2]
[341598023,1731016254059,-1251.49,0.00027671,2]
[341598024,1731016254069,-696.32,0.00027671,2]
[341598025,1731016254080,-500.0,0.00027671,2]
[341598026,1731016254090,-500.0,0.00027671,2]
[341598027,1731016254100,-500.0,0.00027671,2]
[341598028,1731016254110,-500.0,0.00027671,2]
[341598029,1731016254120,-500.0,0.00027671,2]
[341598030,1731016254129,-500.0,0.00027671,2]
[341598031,1731016254139,-500.0,0.00027671,2]
[341598032,1731016254149,-500.0,0.00027671,2]
[341598033,1731016254159,-500.0,0.00027671,2]
[341598034,1731016254170,-564.4,0.00027671,2]
[341598035,1731016254179,-500.0,0.00027671,2]
[341598036,1731016254189,-7843.10717397,0.00027671,2]
[341598037,1731016254201,-380.475,0.00027671,2]
[341598038,1731016254254,-0.18046127,0.00027397,2]
[341598042,1731016497801,161.8,0.00015342,2]
[341598043,1731016583859,-173.63,0.00020465,2]
[341598047,1731016986450,-450.0,0.00021,2]
[341598048,1731016986475,-161.8,0.00021745,2]
[341598049,1731017006113,-500.0,0.00023,2]
[341598050,1731017060737,299.99,0.00025,7]
[341598051,1731017098261,-1355.1,0.00023208,2]
[341598052,1731017107470,450.0,0.00021,2]
[341598053,1731017108574,500.0,0.00023,2]
[341598056,1731017123211,214.24,0.00015342,2]
[341598057,1731017123432,214.24,0.00021745,2]
[341598058,1731017125218,726.59671059,0.00022635,2]
[341598059,1731017132136,-278.985951,0.00024457,2]
[341598060,1731017143095,-442.16177848,0.00024457,2]
[341598062,1731017187077,688.42,0.00024456,2]
[341598063,1731017189054,152.38,0.00023756,2]
[341598064,1731017189948,1090.335161,0.00024457,2]
[341598066,1731017212767,-1739.5499,0.0002458,2]
[341598067,1731017246983,-426.31964775,0.00024805,2]
[341598068,1731017247005,-688.42,0.00024849,2]
[341598069,1731017247036,-150.99,0.00024924,2]
[341598070,1731017247057,-372.1,0.00024924,2]
[341598071,1731017247078,-863.31,0.00024924,2]
[341598072,1731017247100,-546.27,0.00024999,2]
[341598073,1731017247121,-550.0,0.00025,2]
[341598074,1731017248098,-152.38,0.00025006,2]
[341598075,1731017248119,-30.28851682,0.00025012,2]
[341598076,1731017253101,-219.71148318,0.00025012,2]
[341598077,1731017253123,-833.09,0.00025012,2]
[341598078,1731017253147,-500.0,0.00025024,2]
[341598079,1731017253170,-200.0,0.00025025,2]
[341598080,1731017253193,-164.3,0.00025032,2]
[341598081,1731017253215,-250.0,0.00025032,2]
[341598082,1731017253244,-239.6,0.00025044,2]
[341598083,1731017253268,-800.0,0.00025068,7]
[341598084,1731017253292,-500.0,0.00025068,7]
[341598085,1731017253315,-150.99,0.00025068,2]
[341598086,1731017253336,-474.17,0.00025068,2]
[341598087,1731017253364,-837.20436984,0.00025068,2]
[341598088,1731017290014,-150.99,0.00025068,2]
[341598089,1731017290036,-1236.7624,0.000251,2]
[341598090,1731017290056,-150.0,0.00025123,2]
[341598091,1731017290076,-2266.72,0.00025123,2]
[341598092,1731017290096,-4847.96907372,0.00025123,2]
[341598093,1731017290119,-200.0,0.00025146,2]
[341598094,1731017290140,-1147.55852628,0.00025154,2]
[341598095,1731017297884,150.0,0.00018123,2]
[341598096,1731017302341,-700.0,0.00025068,7]
[341598097,1731017302362,-500.0,0.00025068,7]
[341598102,1731017314364,-97.28147372,0.00025154,2]
[341598104,1731017327433,-8702.71852628,0.00025194,2]
[341598105,1731017337934,-1720.45443,0.00025067,2]
[341598106,1731017347489,-4532.13592225,0.00025194,2]
[341598107,1731017357688,-1757.33822841,0.00025194,2]
[341598108,1731017364789,-6423.3933992,0.00025194,2]
[341598109,1731017374233,-2484.41392386,0.00025194,2]
[341598110,1731017378209,200.19367748,0.00025068,2]
[341598111,1731017384816,-163.97,0.00025201,120]
[341598112,1731017399564,-3010.56,0.00025206,2]
[341598113,1731017407579,-1000.0,0.00025212,2]
[341598114,1731017427118,-373.85,0.00025227,2]
[341598115,1731017427140,-276.32,0.00025232,2]
[341598116,1731017427162,-160.867206,0.00025241,2]
[341598117,1731017427184,-688.42,0.00025242,2]
[341598118,1731017427205,-1641.40519266,0.00025336,2]
[341598143,1731017431761,-110.39480734,0.00025336,2]
[341598144,1731017431772,-168.38,0.00025337,30]
[341598145,1731017431781,-385.75,0.00025386,2]
[341598146,1731017431794,-1000.0,0.0002544,2]
[341598147,1731017431803,-1355.1,0.00025472,2]
[341598148,1731017431812,-249.2,0.00025582,2]
[341598149,1731017431822,-179.69660195,0.00025582,2]
[341598150,1731017431833,-22.85339805,0.00025582,2]
[341598151,1731017431843,-1330.0,0.00025631,2]
[341598152,1731017431852,-688.42,0.00025635,2]
[341598153,1731017431862,-167.13,0.00025766,2]
[341598154,1731017431871,-169.95,0.00025859,2]
[341598155,1731017431880,-700.0,0.0002589,7]
[341598156,1731017431890,-688.42,0.00026028,2]
[341598157,1731017431899,-284.55,0.00026176,2]
[341598158,1731017431908,-284.55,0.0002619,2]
[341598159,1731017431918,-284.55,0.00026204,2]
[341598160,1731017431927,-284.55,0.00026218,2]
[341598161,1731017431936,-284.55,0.00026231,2]
[341598162,1731017431945,-284.55,0.00026245,2]
[341598163,1731017431955,-152.38,0.00026256,2]
[341598164,1731017431964,-284.55,0.00026259,2]
[341598165,1731017431973,-284.55,0.00026273,2]
[341598166,1731017431982,-284.55,0.00026286,2]
[341598167,1731017431991,-284.55,0.000263,2]
[341598168,1731017432000,-284.55,0.00026314,2]
[341598169,1731017432010,-1156.38112767,0.00026317,2]
[341598170,1731017432026,-5088.12644554,0.00026317,2]
[341598171,1731017432037,-1113.85955664,0.00026317,2]
[341598179,1731017437809,-1421.55673375,0.00026317,2]
[341598180,1731017437917,-30.99843909,0.00026317,2]
[341598181,1731017437929,-2105.15940939,0.00026317,2]
[341598182,1731017437965,-1428.63920147,0.00026317,2]
[341598183,1731017437976,-36732.27908645,0.00026317,2]
[341598184,1731017437988,-284.55,0.00026328,2]
[341598185,1731017437997,-284.55,0.00026342,2]
[341598186,1731017438006,-284.55,0.00026355,2]
[341598187,1731017438015,-284.55,0.00026369,2]
[341598188,1731017438025,-284.55,0.00026383,2]
[341598189,1731017438034,-284.55,0.00026397,2]
[341598190,1731017438043,-284.55,0.00026411,2]
[341598191,1731017438052,-688.42,0.00026421,2]
[341598192,1731017438061,-284.55,0.00026424,2]
[341598193,1731017438071,-284.55,0.00026438,2]
[341598194,1731017438081,-314.48,0.00026493,120]
[341598195,1731017438090,-276.32,0.00026493,2]
[341598196,1731017438099,-167.76,0.00026494,2]
[341598197,1731017438109,-504.885684,0.000266,2]
[341598198,1731017438118,-500.0,0.00026612,2]
[341598199,1731017438127,-700.0,0.00026712,7]
[341598200,1731017438137,-500.0,0.00026712,7]
[341598201,1731017438146,-240.84,0.00026756,2]
[341598202,1731017438155,-688.42,0.00026814,2]
[341598203,1731017438165,-200.0,0.000269,9]
[341598204,1731017438174,-600.0,0.00027,2]
[341598205,1731017438184,-175.0,0.00027,2]
[341598206,1731017438193,-1000.0,0.00027097,2]
[341598207,1731017438203,-2500.0,0.00027097,2]
[341598208,1731017438213,-3340.676,0.00027197,2]
[341598209,1731017438223,-100000.0,0.00027197,2]
[341598210,1731017438233,-1000.0,0.00027197,2]
[341598211,1731017438243,-462.5587,0.00027197,2]
[341598212,1731017438252,-1543.615,0.00027197,15]
[341598213,1731017438262,-156.02118209,0.00027197,2]
[341598214,1731017438271,-150.110806,0.00027198,2]
[341598215,1731017438281,-688.42,0.00027207,2]
[341598216,1731017438290,-1031.0008,0.00027294,2]
[341598217,1731017438299,-500.0,0.00027296,2]
[341598218,1731017438309,-470.06305537,0.00027296,2]
[341598219,1731017438319,-500.0,0.00027296,2]
[341598220,1731017438329,-500.0,0.00027296,2]
[341598221,1731017438339,-200.0,0.00027297,2]
[341598222,1731017438349,-151412.9867,0.00027297,2]
[341598224,1731017438359,-150.110806,0.00027298,2]
[341598226,1731017438369,-500.0,0.00027373,2]
[341598228,1731017438379,-150.93020838,0.00027373,2]
[341598230,1731017438389,-160.46257103,0.00027373,2]
[341598232,1731017438398,-500.0,0.00027373,2]
[341598234,1731017438408,-150.0,0.00027392,2]
[341598236,1731017438418,-204.75643073,0.00027395,2]
[341598237,1731017438428,-2495.49,0.00027396,2]
[341598238,1731017438437,-151.0,0.00027397,7]
[341598239,1731017438447,-500.0,0.00027397,2]
[341598240,1731017438457,-151.0,0.00027397,7]
[341598241,1731017438466,-500.0,0.00027397,2]
[341598242,1731017438476,-416.52421522,0.00027397,2]
[341598243,1731017438490,-591.58,0.00027397,2]
[341598244,1731017438499,-150.557649,0.00027397,2]
[341598245,1731017438508,-500.0,0.00027397,2]
[341598246,1731017438517,-500.0,0.00027397,2]
[341598247,1731017438527,-427.52024219,0.00027397,2]
[341598249,1731017438536,-500.0,0.00027397,2]
[341598251,1731017438545,-500.0,0.00027397,2]
[341598253,1731017438555,-500.0,0.00027397,2]
[341598255,1731017438564,-500.0,0.00027397,2]
[341598257,1731017438573,-157.836496,0.00027397,2]
[341598259,1731017438583,-154.147921,0.00027397,2]
[341598261,1731017438592,-171.791725,0.00027397,2]
[341598263,1731017438601,-500.0,0.00027397,2]
[341598264,1731017438611,-547.1,0.00027397,2]
[341598266,1731017438621,-500.0,0.00027397,2]
[341598268,1731017438631,-500.0,0.00027397,2]
[341598270,1731017438640,-500.0,0.00027397,2]
[341598272,1731017438650,-500.0,0.00027397,2]
[341598274,1731017438659,-500.0,0.00027397,2]
[341598276,1731017438668,-500.0,0.00027397,2]
[341598278,1731017438678,-591.72,0.00027397,2]
[341598280,1731017438687,-500.0,0.00027397,2]
[341598282,1731017438697,-500.0,0.00027397,2]
[341598284,1731017438707,-500.0,0.00027397,2]
[341598286,1731017438717,-500.0,0.00027397,2]
[341598288,1731017438726,-500.0,0.00027397,2]
[341598290,1731017438737,-500.0,0.00027397,2]
[341598292,1731017438747,-500.0,0.00027397,2]
[341598294,1731017438757,-500.0,0.00027397,2]
[341598295,1731017438767,-500.0,0.00027397,2]
[341598297,1731017438776,-500.0,0.00027397,2]
[341598299,1731017438786,-500.0,0.00027397,2]
[341598301,1731017438800,-500.0,0.00027397,2]
[341598303,1731017438810,-500.0,0.00027397,2]
[341598305,1731017438820,-661.03,0.00027397,2]
[341598307,1731017438831,-398.4519846,0.00027397,2]
[341598309,1731017438840,-500.0,0.00027397,2]
[341598311,1731017438850,-500.0,0.00027397,2]
[341598313,1731017438860,-500.0,0.00027397,2]
[341598315,1731017438871,-500.0,0.00027397,2]
[341598317,1731017438881,-500.0,0.00027397,2]
[341598319,1731017438892,-500.0,0.00027397,2]
[341598321,1731017438901,-500.0,0.00027397,2]
[341598323,1731017438910,-500.0,0.00027397,2]
[341598325,1731017438920,-500.0,0.00027397,2]
[341598327,1731017438930,-519.97,0.00027397,2]
[341598329,1731017438940,-622.77,0.00027397,2]
[341598331,1731017438949,-500.0,0.00027397,2]
[341598333,1731017438959,-500.0,0.00027397,2]
[341598335,1731017438968,-500.0,0.00027397,2]
[341598337,1731017438978,-500.0,0.00027397,2]
[341598339,1731017438990,-500.0,0.00027397,2]
[341598340,1731017439000,-500.0,0.00027397,2]
[341598341,1731017439009,-500.0,0.00027397,2]
[341598343,1731017439018,-500.0,0.00027397,2]
[341598344,1731017439028,-500.0,0.00027397,2]
[341598346,1731017439038,-500.0,0.00027397,2]
[341598347,1731017439047,-500.0,0.00027397,2]
[341598349,1731017439056,-500.0,0.00027397,2]
[341598350,1731017439066,-500.0,0.00027397,2]
[341598351,1731017439075,-500.0,0.00027397,2]
[341598353,1731017439086,-500.0,0.00027397,2]
[341598354,1731017439096,-500.0,0.00027397,2]
[341598356,1731017439105,-500.0,0.00027397,2]
[341598357,1731017439115,-500.0,0.00027397,2]
[341598359,1731017439124,-500.0,0.00027397,2]
[341598360,1731017439134,-500.0,0.00027397,2]
[341598362,1731017439145,-500.0,0.00027397,2]
[341598363,1731017439155,-500.0,0.00027397,2]
[341598365,1731017439164,-500.0,0.00027397,2]
[341598366,1731017439174,-500.0,0.00027397,2]
[341598368,1731017439184,-500.0,0.00027397,2]
[341598369,1731017439194,-500.0,0.00027397,2]
[341598371,1731017439204,-500.0,0.00027397,2]
[341598372,1731017439213,-500.0,0.00027397,2]
[341598373,1731017439223,-500.0,0.00027397,2]
[341598375,1731017439234,-500.0,0.00027397,2]
[341598377,1731017439243,-733.45,0.00027397,2]
[341598378,1731017439253,-500.0,0.00027397,2]
[341598380,1731017439262,-500.0,0.00027397,2]
[341598381,1731017439271,-500.0,0.00027397,2]
[341598382,1731017439280,-1000.0,0.00027397,2]
[341598384,1731017439290,-500.0,0.00027397,2]
[341598386,1731017439299,-663.09,0.00027397,2]
[341598387,1731017439309,-500.0,0.00027397,2]
[341598388,1731017439319,-500.0,0.00027397,2]
[341598390,1731017439328,-500.0,0.00027397,2]
[341598392,1731017439338,-500.0,0.00027397,2]
[341598393,1731017439347,-500.0,0.00027397,2]
[341598394,1731017439357,-500.0,0.00027397,2]
[341598396,1731017439366,-500.0,0.00027397,2]
[341598397,1731017439376,-500.0,0.00027397,2]
[341598399,1731017439385,-500.0,0.00027397,2]
[341598401,1731017439396,-500.0,0.00027397,2]
[341598402,1731017439405,-252.47658547,0.00027397,2]
[341598404,1731017439415,-500.0,0.00027397,2]
[341598405,1731017439424,-500.0,0.00027397,2]
[341598407,1731017439434,-315.6,0.00027397,2]
[341598408,1731017439443,-500.0,0.00027397,2]
[341598410,1731017439453,-500.0,0.00027397,2]
[341598411,1731017439462,-500.0,0.00027397,2]
[341598413,1731017439472,-712.88,0.00027397,2]
[341598414,1731017439481,-524.11,0.00027397,2]
[341598416,1731017439492,-500.0,0.00027397,2]
[341598418,1731017439502,-500.0,0.00027397,2]
[341598419,1731017439511,-500.0,0.00027397,2]
[341598421,1731017439520,-500.0,0.00027397,2]
[341598422,1731017439530,-500.0,0.00027397,2]
[341598424,1731017439540,-688.82,0.00027397,2]
[341598425,1731017439550,-500.0,0.00027397,2]
[341598427,1731017439559,-500.0,0.00027397,2]
[341598428,1731017439568,-500.0,0.00027397,2]
[341598430,1731017439577,-500.0,0.00027397,2]
[341598431,1731017439586,-500.0,0.00027397,2]
[341598433,1731017439596,-500.0,0.00027397,2]
[341598435,1731017439605,-500.0,0.00027397,2]
[341598436,1731017439615,-503.34002586,0.00027397,2]
[341598438,1731017439624,-500.0,0.00027397,2]
[341598439,1731017439634,-500.0,0.00027397,2]
[341598441,1731017439644,-1031.12,0.00027397,2]
[341598442,1731017439653,-151.0,0.00027397,7]
[341598444,1731017439663,-500.0,0.00027397,2]
[341598446,1731017439672,-500.0,0.00027397,2]
[341598447,1731017439682,-500.0,0.00027397,2]
[341598449,1731017439692,-697.01,0.00027397,2]